Workbook

Sheet Master (hidden)
H2: Scenario Description
H3: Enter Scenario Name | S3: Max U-Value Coefficients
S4: m | T4: b
S5: 1.005124432 | T5: 0.04658408759
A7: Enhanced Thermal Performance Spread Sheet | E7: =IF(N13=TRUE, "IP Units", "SI Units") -> SI Units
A10: Clear Field Area Method | F10: Overall Opaque Wall Thermal Performance Values | V10: Workspace
A11: Select Area Calculation (Choose One) | B11: Area | C11: Units | F11: Base Building | I11: Proposed Building | L11: Sum Option On or Off | M11: Percent Difference | N11: If values are number or not | O11: % Below Baseline | Q11: Base Building Clear Field U-Value | R11: =SUM(R21:R22)/B12 -> 
B12: =SUM(N21:N22) -> 0 | C12: m2 | F12: Opaque USI-Value (W/m2K) | H12: Enter Base Building U-Value | I12: Opaque USI-Value (W/m2K) | K12: =IF(ISERROR(J17/(IF(L12=TRUE,B12,B13))),"-",J17/(IF(L12=TRUE,B12,B13))) -> - | L12: TRUE | M12: =-(1-K12/H12) ->  | N12: =IF(ISNUMBER(M12), TRUE, FALSE) -> FALSE | O12: =IF(N12=TRUE,IF(M12>=10,"> +1000%",M12),"-") -> - | Q12: Max Overall U-Value | R12: =S5*R11+T5 ->  | T12: Used U-Value
B13: Enter User Defined Opaque Area | C13: m2 | F13: Effective RSI-Value (m2K/W) | H13: =IF(ISERROR(1/H12),"-",1/H12) -> - | I13: Effective RSI-Value (m2K/W) | K13: =IF(ISERROR(1/K12),"-",1/K12) -> - | L13: FALSE | N13: FALSE | Q13: Base Building Overall U-Value | R13: =IF(ISERROR(R17/(IF(L12=TRUE,B12,B13))),"-",R17/(IF(L12=TRUE,B12,B13))) -> - | T13: =IF(R13>=R12, R12, R13) -> 
A17: Proposed Building Entries | I17: Totals | J17: =SUM(J21:J26) -> 0 | K17: =SUM(K21:K26) -> 0 | R17: =SUM(R21:R26) -> 0
A18: Add/Remove Detail | B18: Transmittance Type | C18: Include | D18: Transmittance Description | E18: Area, Length or Amount Takeoff | F18: Units | G18: Transmittance Value | H18: Units | I18: Source Reference | J18: Heat Flow (W/K) | K18: %Total Heat Flow | V18: Notes
L20: Include On or Off | M20: Conditional Formatting On or Off | N20: Area On or Off
A21: 1 | B21: Clear Field | D21: Enter Description Here | E21: Enter Area Here | F21: m2 | G21: Enter Clear Field U-Value Here | H21: W/m2K | I21: Enter Source Here | J21: =IF(ISERROR(G21*E21),"-",IF(L21=TRUE,G21*E21,)) -> - | K21: =IF(ISERROR(J21/$J$17),"-",J21/$J$17) -> - | L21: TRUE | M21: =IF(L21=FALSE,TRUE,FALSE) -> FALSE | N21: =IF(L21=TRUE,E21,0) -> Enter Area Here | R21: =IF(ISERROR(O21*E21),"-",IF(L21=TRUE,O21*E21,)) -> -
S22: x
B23: Linear Interface Detail | D23: Enter Description Here | E23: Enter Length Here | F23: m | G23: Enter Psi-Value Here | H23: W/mK | I23: Enter Source Here | J23: =IF(ISERROR(G23*E23),"-",IF(L23=TRUE,G23*E23,)) -> - | K23: =IF(ISERROR(J23/$J$17),"-",J23/$J$17) -> - | L23: TRUE | M23: FALSE | R23: =IF(ISERROR(O23*E23),"-",IF(L23=TRUE,O23*E23,)) -> -
T24: x
B25: Point Interface Detail | D25: Enter Description Here | E25: Enter Amount Here | F25: # | G25: Enter Chi-Value Here | H25: W/K | I25: Enter Source Here | J25: =IF(ISERROR(G25*E25),"-",IF(L25=TRUE,G25*E25,)) -> - | K25: =IF(ISERROR(J25/$J$17),"-",J25/$J$17) -> - | L25: TRUE | M25: =IF(L25=FALSE,TRUE,FALSE) -> FALSE | R25: =IF(ISERROR(O25*E25),"-",IF(L25=TRUE,O25*E25,)) -> -
U26: x

Sheet Instructions
A9: Enhanced Thermal Performance Spread Sheet
A11: Introduction
A13: This enchanced spreadsheet is intended to be a helpful tool in combining thermal performance values for building assemblies into an overall R- and U-Value. The methodology for calculations in this spreadsheet follows the approach given in the Building Envelope Thermal Bridging Guide. This methodology allows for the calculation of R- and U- values that include the heat flow effects from clear field transmittances, linear transmittances and point transmittances. For more information on the methodology, the guide can be found free for download at the BC Hydro New Construction website:
A14: Building Envelope Thermal Bridging Guide
A16: Disclaimer
A17: Pleae note that this is only a tool to assist in calculations. As with all calculations, proper judgement is needed in determining appropriate values to use with this spreadsheet. It is not intended to be used without an understanding of the calculation methodology behind this spreadsheet, as detailed in the Building Envelope Thermal Bridging Guide. It is soley upto the users of this spreadsheet to determine whether the values found using this spreadsheet are appropriate for their intended use.
A19: Spreadsheet Entries
A21: This spread sheet has many sections where Users may input data. Here we will go over each input.
A23: Scenario Name
A24: Enter a name for the scenario. This is for organization for the users who may have multiple cases that they would like to compare
A26: Create New WorkSheet
A27: This will create a new blank worksheet
A29: Copy to New WorkSheet
A30: This will copy the current scenario and all its entries into a new tab
A32: Reset Current WorkSheet
A33: This will reset all the information in the worksheet back to its default entries. Note, all user inputted information will be erased from the selected worksheet
A35: Change Units
A36: Clicking this button will change all the units in the spreadsheet from Imperial (IP) to the Internation System of Units (SI). This will convert all users entries as well
A38: Clear Field Area Method
A39: Two options are available for the Total Area to be used in calculations. The default is to use a sum of the active clear field areas which is automatically calculated from the user entered areas in clear field section. Clear fields that are not active will not be included in this sum. In some cases, the Total Area for calculations may not match the total clear field area (such as with floor to ceiling glazing situations) and the second option is for the User to manually input the area to be used. See the Building Envelope Thermal Bridiging Guide, 1-11 for more information
A41: Base Building U-value
A42: See Base Building U-Value Tab
A44: Workspace
A45: This is a blank work area that can be used for quick calculations
A47: Add Clear Field
A48: Clicking this button will add another blank Clear Field line
A50: Add Linear Interface Detail
A51: Clicking this button will add another blank Linear Interface Detail line
A53: Add Point Interface Detail
A54: Clicking this button will add another blank Point Interface Detail line
A56: Include
A57: Clicking the checkmark on will include this clear field/interface detail in calculations. Unclicking this checkmark will exclude this entry from calculations
A59: Enter Description
A60: User can input a description of the clear field or interface detail. Ie "Exterior insulated steel stud wall"
A62: Area, Length or Amount Takeoff
A63: Enter the area of the clear field assembly, length of the interface detail or number of a particular point interface detail
A65: Transmittance Value
A66: Enter the appropriate transmittance value. Enter the U-value for the clear field, a Psi-Value for the Linear detail and the Chi-Value for the point detail
A68: Source Reference
A69: Optionally the User can put the reference from which the transmittance was found. Ie "Detail 5.2.1 from the Building Envelope Thermal Bridging Guide" or "Hand Calculations"
A71: Notes
A72: User can enter any other notes for a particular clear field assembly or detail as they wish
A74: Spreadsheet Values
A76: Base Building U- and R-Value
A77: This is the base building U- and R-Values as determined by the User. See Base Building U-Value tab
A79: Proposed Building U- and R-Value
A80: This is the proposed building U- and R-Values as determined by the spreadsheet calculator. This includes all active clear field assemblies and linear and point details along with all active takeoff values. This will not return a value if there is an error with any of the values. This is calculated using the follow equation. For more information on the calculation, see the Building Envelope Thermal Bridging Guide
A99: % Below Baseline
A100: This value shows the difference between the base building and proposed building U-values in percentage. Red indicates that the proposed is worse than the base. Green indicates the proposed is better than the base.
A102: Heat Flow
A103: Shows the actual total amount of heat flow from the clear field assembly or detail (not averaged per area)
A105: % Total Heat Flow
A106: Shows the percentage of total heat flow from that particular clear field assembly or detail compared to the other active assemblies or details. This can be useful in determining the biggest contributor to heat flow.

Sheet Base Building U-Value
A9: Enhanced Thermal Performance Spread Sheet
A11: Base Building U-value
A12: In typical energy models using ASHRAE 90.1-2010, the base building uses building envelope values based on the prescriptive tables 5.5-1 to 5.5-8, depending on the climate zone. For the BC Hydro New Construction Program, these values are derated for the base building to include a default amount of thermal bridging in the base building. The ASHRAE 90.1-2010 values are derated according to the graph in Figure 1. The amount of derating depends on the construction type and building type. An allowance has been made for High-Rise Multi-Unit Residential Buildings. For a given construction type, and User must determine what their ASHARE 90.1-2010 prescriptive U-value (or USI-Value) is. Then using Figure 1, the User will find where their ASHRAE 90.1-2010 value is on the horizontal axis and where it intercepts either the High-Rise MURB or All Other curve. This intercept will line up with the Base Building U-Value (or USI value) on the vertical axis. This value is input into the Base Building U-Value entry
D15: Base Building - All Other | H15: Base Building - High-Rise MURB
A16: R | B16: 90.1-2010 U-Value | C16: USI | D16: %Increase | F16: Maximum Allowable U-value | G16: USI | H16: %Increase | J16: Maximum Allowable U-value | K16: USI
A17: 8 | B17: =1/A17 -> 0.125 | C17: =B17*5.678 -> 0.70975 | D17: 38 | E17: =1+D17/100 -> 1.38 | F17: =B17*E17 -> 0.1725 | G17: =F17*5.678 -> 0.979455 | H17: 65 | I17: =1+H17/100 -> 1.65 | J17: =B17*I17 -> 0.20625 | K17: =J17*5.678 -> 1.1710875
A18: 12.5 | B18: =1/A18 -> 0.08 | C18: =B18*5.678 -> 0.45424 | D18: 57 | E18: =1+D18/100 -> 1.57 | F18: =B18*E18 -> 0.1256 | G18: =F18*5.678 -> 0.7131568 | H18: 98 | I18: =1+H18/100 -> 1.98 | J18: =B18*I18 -> 0.1584 | K18: =J18*5.678 -> 0.8993952
A19: 15.6 | B19: =1/A19 -> 0.0641025641 | C19: =B19*5.678 -> 0.363974359 | D19: 75 | E19: =1+D19/100 -> 1.75 | F19: =B19*E19 -> 0.1121794872 | G19: =F19*5.678 -> 0.6369551282 | H19: 127 | I19: =1+H19/100 -> 2.27 | J19: =B19*I19 -> 0.1455128205 | K19: =J19*5.678 -> 0.8262217949
A20: 23.8 | B20: =1/A20 -> 0.04201680672 | C20: =B20*5.678 -> 0.2385714286 | D20: 113 | E20: =1+D20/100 -> 2.13 | F20: =B20*E20 -> 0.08949579832 | G20: =F20*5.678 -> 0.5081571429 | H20: 195 | I20: =1+H20/100 -> 2.95 | J20: =B20*I20 -> 0.1239495798 | K20: =J20*5.678 -> 0.7037857143
A21: 27.8 | B21: =1/A21 -> 0.03597122302 | C21: =B21*5.678 -> 0.2042446043 | D21: 128 | E21: =1+D21/100 -> 2.28 | F21: =B21*E21 -> 0.08201438849 | G21: =F21*5.678 -> 0.4656776978 | H21: 221 | I21: =1+H21/100 -> 3.21 | J21: =B21*I21 -> 0.1154676259 | K21: =J21*5.678 -> 0.6556251799
E22: Slope | F22: =SLOPE(F17:F21,B17:B21) -> 1.005124432 | G22: =SLOPE(G17:G21,C17:C21) -> 1.005124432 | J22: =SLOPE(J17:J21,B17:B21) -> 1.001751933 | K22: =SLOPE(K17:K21,C17:C21) -> 1.001751933
E23: Intercept | F23: =INTERCEPT(F17:F21,B17:B21) -> 0.04658408759 | G23: =INTERCEPT(G17:G21,C17:C21) -> 0.2645044494 | J23: =INTERCEPT(J17:J21,C17:C21) -> 0.08037627059 | K23: =INTERCEPT(K17:K21,C17:C21) -> 0.4563764644
R25: Table 1: Typical Base Building Values (IP)
R26: Wall Type | S26: ASHRAE 90.1 Zone 5 U-Value | T26: Base Building U-value: High Rise MURB | U26: Base Building U-Value: All Other
R27: Non Residential
R28: Mass | S28: 0.09 | T28: - | U28: 0.137
R29: Metal Building | S29: 0.113 | T29: - | U29: 0.16
R30: Steel-Framed | S30: 0.064 | T30: - | U30: 0.1109
R31: Wood-Framed and Other | S31: 0.064 | T31: - | U31: 0.1109
R32: Residential
R33: Mass | S33: 0.08 | T33: 0.1605 | U33: 0.12699
R34: Metal Building | S34: 0.057 | T34: - | U34: 0.103876
R35: Steel-Framed | S35: 0.064 | T35: 0.1444 | U35: 0.1109
R36: Wood-Framed and Other | S36: 0.051 | T36: - | U36: 0.097845
R38: Table 2: Typical Base Building Values (SI)
R39: Wall Type | S39: ASHRAE 90.1 Zone 5 U-Value | T39: Base Building U-value: High Rise MURB | U39: Base Building U-Value: All Other
R40: Non Residential
R41: Mass | S41: =S28*5.678 -> 0.51102 | T41: - | U41: 0.778
R42: Metal Building | S42: =S29*5.678 -> 0.641614 | T42: - | U42: 0.909
R43: Steel-Framed | S43: 0.363392 | T43: - | U43: 0.62975
R44: Wood-Framed and Other | S44: 0.363392 | T44: - | U44: 0.62975
R45: Residential
R46: Mass | S46: =S33*5.678 -> 0.45424 | T46: 0.911 | U46: 0.72107
R47: Metal Building | S47: =S34*5.678 -> 0.323646 | T47: - | U47: 0.5898
R48: Steel-Framed | S48: 0.363392 | T48: 0.82 | U48: 0.62975
A49: Figure 1: BC Hydro New Construction Base Building Values | R49: Wood-Framed and Other | S49: 0.289578 | T49: - | U49: 0.5555
A51: Tables 1 and 2 show common entries for ASHRAE 90.1-2010 Zone 5 and the resulting Base Building U-values.
A70: If doing an multiple construction area weighted building U- or R-Value, the same would have to be done for the ASHRAE 90.1-2010 value. For example if an office building in Zone 5 had 50% steel stud and 50% mass wall, the ASHRAE 90.1-2010 value would be U-0.077 (USI-0.437). From Figure 1, the Base Building U-Value would be U-0.124 (USI-0.704). Below is a quick calculator using the values in Figure 1 to assist in calculting the base building U-value
A72: High Rise MURB Base Building Calculator
A73: Unit Type | B73: ASHRAE 90.1-2010 Value | C73: Base Building Value
A74: IP | B74: Enter IP U-Value | C74: =IF(ISERROR(INT(B74))=FALSE,IF(B74=0,"-",B74*J22+J23),"-") -> -
A75: SI | B75: Enter SI USI-Value | C75: =IF(ISERROR(INT(B75))=FALSE,IF(B75=0,"-",B75*K22+K23),"-") -> -
A77: All Other Base Building Calculator
A78: Unit Type | B78: ASHRAE 90.1-2010 U-Value | C78: Base Building U-Value
A79: IP | B79: Enter IP U-Value | C79: =IF(ISERROR(INT(B79))=FALSE,IF(B79=0,"-",B79*F22+F23),"-") -> -
A80: SI | B80: Enter SI USI-Value | C80: =IF(ISERROR(INT(B80))=FALSE,IF(B80=0,"-",B80*G22+G23),"-") -> -

Sheet New Sheet 1
H2: Scenario Description
H3: Enter Scenario Name | S3: Max U-Value Coefficients
S4: m | T4: b
S5: 1.005124432 | T5: 0.04658408759
A7: Enhanced Thermal Performance Spread Sheet | E7: =IF(N13=TRUE, "IP Units", "SI Units") -> SI Units
A10: Clear Field Area Method | F10: Overall Opaque Wall Thermal Performance Values | V10: Workspace
A11: Select Area Calculation (Choose One) | B11: Area | C11: Units | F11: Base Building | I11: Proposed Building | L11: Sum Option On or Off | M11: Percent Difference | N11: If values are number or not | O11: % Below Baseline | Q11: Base Building Clear Field U-Value | R11: =SUM(R21:R22)/B12 -> 
B12: =SUM(N21:N22) -> 0 | C12: m2 | F12: Opaque USI-Value (W/m2K) | H12: Enter Base Building U-Value | I12: Opaque USI-Value (W/m2K) | K12: =IF(ISERROR(J17/(IF(L12=TRUE,B12,B13))),"-",J17/(IF(L12=TRUE,B12,B13))) -> - | L12: TRUE | M12: =-(1-K12/H12) ->  | N12: =IF(ISNUMBER(M12), TRUE, FALSE) -> FALSE | O12: =IF(N12=TRUE,IF(M12>=10,"> +1000%",M12),"-") -> - | Q12: Max Overall U-Value | R12: =S5*R11+T5 ->  | T12: Used U-Value
B13: Enter User Defined Opaque Area | C13: m2 | F13: Effective RSI-Value (m2K/W) | H13: =IF(ISERROR(1/H12),"-",1/H12) -> - | I13: Effective RSI-Value (m2K/W) | K13: =IF(ISERROR(1/K12),"-",1/K12) -> - | L13: FALSE | N13: FALSE | Q13: Base Building Overall U-Value | R13: =IF(ISERROR(R17/(IF(L12=TRUE,B12,B13))),"-",R17/(IF(L12=TRUE,B12,B13))) -> - | T13: =IF(R13>=R12, R12, R13) -> 
A17: Proposed Building Entries | I17: Totals | J17: =SUM(J21:J26) -> 0 | K17: =SUM(K21:K26) -> 0 | R17: =SUM(R21:R26) -> 0
A18: Add/Remove Detail | B18: Transmittance Type | C18: Include | D18: Transmittance Description | E18: Area, Length or Amount Takeoff | F18: Units | G18: Transmittance Value | H18: Units | I18: Source Reference | J18: Heat Flow (W/K) | K18: %Total Heat Flow | V18: Notes
L20: Include On or Off | M20: Conditional Formatting On or Off | N20: Area On or Off
A21: 1 | B21: Clear Field | D21: Enter Description Here | E21: Enter Area Here | F21: m2 | G21: Enter Clear Field U-Value Here | H21: W/m2K | I21: Enter Source Here | J21: =IF(ISERROR(G21*E21),"-",IF(L21=TRUE,G21*E21,)) -> - | K21: =IF(ISERROR(J21/$J$17),"-",J21/$J$17) -> - | L21: TRUE | M21: =IF(L21=FALSE,TRUE,FALSE) -> FALSE | N21: =IF(L21=TRUE,E21,0) -> Enter Area Here | R21: =IF(ISERROR(O21*E21),"-",IF(L21=TRUE,O21*E21,)) -> -
S22: x
B23: Linear Interface Detail | D23: Enter Description Here | E23: Enter Length Here | F23: m | G23: Enter Psi-Value Here | H23: W/mK | I23: Enter Source Here | J23: =IF(ISERROR(G23*E23),"-",IF(L23=TRUE,G23*E23,)) -> - | K23: =IF(ISERROR(J23/$J$17),"-",J23/$J$17) -> - | L23: TRUE | M23: FALSE | R23: =IF(ISERROR(O23*E23),"-",IF(L23=TRUE,O23*E23,)) -> -
T24: x
B25: Point Interface Detail | D25: Enter Description Here | E25: Enter Amount Here | F25: # | G25: Enter Chi-Value Here | H25: W/K | I25: Enter Source Here | J25: =IF(ISERROR(G25*E25),"-",IF(L25=TRUE,G25*E25,)) -> - | K25: =IF(ISERROR(J25/$J$17),"-",J25/$J$17) -> - | L25: TRUE | M25: =IF(L25=FALSE,TRUE,FALSE) -> FALSE | R25: =IF(ISERROR(O25*E25),"-",IF(L25=TRUE,O25*E25,)) -> -
U26: x
